Cogmind - Beta 10.2 @@@ ROGUE MODE // 2022.01.08 @ 19:17:42 Player: Dendrocnid Result: Self-destructed Performance ------------- Evolutions (2) 1000 Regions Visited (5) 1000 Robots Destroyed (18) 90 Value Destroyed (411) 411 Prototype IDs (2) 40 Alien Tech Used (0) 0 Bonus (300) 300 TOTAL SCORE: 2841 Bonus ------- Aligned with FarCom 300 Cogmind --------- Core Integrity 444/550 Matter 198/300 Energy 250/250 System Corruption 0% Temperature Cool (0) Movement Core (100) Ox1 Location -8/Materials Parts ------- > --- POWER (1) -------- Ion Engine > --- PROPULSION (4) --- (None) > --- UTILITY (4) ------ Modified TNC > --- WEAPON (2) ------- (None) > --- INVENTORY (4) ---- Flight Unit Small Storage Unit Large Storage Unit Grenade Launcher Peak State ------------ > --- POWER ------------ Ion Engine > --- PROPULSION ------- Aluminum Leg Aluminum Leg > --- UTILITY ---------- Large Storage Unit Skeleton Box > --- WEAPON ----------- EM Pulse Gun Light Assault Rifle > --- INVENTORY -------- Ion Engine Fission Core Light Fission Core Light Fission Core Aluminum Leg Aluminum Leg Flight Unit Small Storage Unit Grenade Launcher [Rating: 14] Favorites ----------- Power Ion Engine Engine Ion Engine Propulsion Aluminum Leg Treads Light Treads Leg Aluminum Leg Flight Unit Flight Unit Utility Large Storage Unit Device Skeleton Box Storage Large Storage Unit Processor Modified TNC Weapon EM Pulse Gun Energy Gun EM Pulse Gun Ballistic Gun Light Assault Rifle Launcher Grenade Launcher Build | -11 -10 -10 -10 -9 -8 ------- Run | Scr Mat Min Exi Min Mat Slots Evolved 4 | . . . . . 4 Power . | . . . . . . Propulsion 2 | . . . . . 2 Utility 2 | . . . . . 2 Weapon . | . . . . . . Parts Attached 23 | 6 9 1 3 . 4 Power 4 | 1 1 . 1 . 1 Engine 4 | 1 1 . 1 . 1 Core . | . . . . . . Reactor . | . . . . . . Propulsion 5 | 2 1 1 . . 1 Treads 2 | 2 . . . . . Leg 2 | . 1 1 . . . Wheel . | . . . . . . Hover . | . . . . . . Flight 1 | . . . . . 1 Utility 5 | 1 2 . 2 . . Device 1 | . . . 1 . . Storage 3 | 1 2 . . . . Processor 1 | . . . 1 . . Hackware . | . . . . . . Protection . | . . . . . . Artifact . | . . . . . . Weapon 9 | 2 5 . . . 2 Energy Gun 4 | 1 3 . . . . Energy Cannon . | . . . . . . Ballistic Gun 2 | 1 1 . . . . Ballistic Cannon . | . . . . . . Launcher 3 | . 1 . . . 2 Special Weapon . | . . . . . . Impact Weapon . | . . . . . . Slashing Weapon . | . . . . . . Piercing Weapon . | . . . . . . Special Melee Weapon . | . . . . . . Unidentified Prototypes 2 | . . . 2 . . Parts Lost 11 | . 4 . . . 7 Power 2 | . 1 . . . 1 Propulsion 4 | . 1 . . . 3 Utility . | . . . . . . Weapon 5 | . 2 . . . 3 Highest Loss Streak 7 | . 4 . . . 7 Average Slot Usage (%) 84 | . 85 85 92 100 56 Engine 8 | . 10 . 7 14 9 Treads 12 | . 24 . . . . Leg 13 | . 3 28 28 28 14 Storage 19 | . 21 28 21 14 8 Processor 3 | . . . 6 14 9 Energy Gun 12 | . 13 14 14 14 6 Ballistic Gun 11 | . 10 14 14 14 6 Naked Turns . | . . . . . . Heaviest Build 40 | 12 40 35 40 24 24 Greatest Support 40 | 40 40 20 20 20 20 Greatest Overweight (x) 3 | . 3 1 1 1 2 Average Overweight (x) . | . . 1 1 1 1 Largest Inventory Capacity 16 | 6 16 16 16 10 10 Average Capacity 11 | 5 11 16 13 10 9 Most Carried 12 | 6 9 9 12 9 10 Average Carried 7 | 4 6 8 9 9 8 Final Capacity 16 | 6 16 16 10 10 4 Final Carried 9 | 6 9 8 9 9 4 Class Distribution -------------------- 100% | Mutant Dominant Class ---------------- Mutant | -10/Materials Mutant | -10/Mines Mutant | -10/Exiles Mutant | -9/Mines Mutant | -8/Materials Resources | -11 -10 -10 -10 -9 -8 ----------- Run | Scr Mat Min Exi Min Mat Matter Collected 382 | 192 190 . . . . Remotely . | . . . . . . Salvage Created 553 | . 501 . . . 52 Parts 40 | . 38 . . . 2 Haulers Intercepted . | . . . . . . Recyclers Shooed 2 | . 2 . . . . Parts Field Recycled . | . . . . . . Retrieved Matter . | . . . . . . Parts Self-Destructed . | . . . . . . Prevented . | . . . . . . Kills | -11 -10 -10 -10 -9 -8 ------- Run | Scr Mat Min Exi Min Mat Combat Hostiles Destroyed 13 | . 12 . . . 1 Guns 9 | . 9 . . . . AOE 4 | . 3 . . . 1 Classes Destroyed 6 | . 5 . . . 1 Recycler 1 | . 1 . . . . Operator 2 | . 2 . . . . Watcher 2 | . 1 . . . 1 Swarmer 6 | . 6 . . . . Grunt 6 | . 6 . . . . Hunter 1 | . . . . . 1 Best Kill Streak 5 | . 5 . . . 2 Combat Bots Only 3 | . 3 . . . 1 Max Kills in Single Turn 3 | . 3 . . . 1 Gunslinging . | . . . . . . Exploded 3 | . 3 . . . 1 Melee . | . . . . . . Uniques/NPCs Destroyed . | . . . . . . Combat | -11 -10 -10 -10 -9 -8 -------- Run | Scr Mat Min Exi Min Mat Damage Taken 1200 | . 630 . . . 570 Core 178 | . 72 . . . 106 Absorbed by Shields . | . . . . . . Core Remaining (%) 85 | 100 . . . 71 . Volleys Fired 60 | . 51 . . . 9 Largest 2 | . 2 . . . 2 Hottest 60 | . 60 . . . 60 Shots Fired 96 | . 83 . . . 13 Gun 90 | . 81 . . . 9 Cannon . | . . . . . . Launcher 6 | . 2 . . . 4 Special . | . . . . . . Kinetic 37 | . 32 . . . 5 Thermal . | . . . . . . Explosive 6 | . 2 . . . 4 Electromagnetic 53 | . 49 . . . 4 Robot Hit Streak 15 | . 15 . . . 8 Robot Miss Streak 4 | . 3 . . . 4 Penetration Max . | . . . . . . Secondary Targets . | . . . . . . Shots Hit Robots 67 | . 59 . . . 8 Core Hits 36 | . 30 . . . 6 Critical Hits . | . . . . . . Critical Kills . | . . . . . . Critical Parts Destroyed . | . . . . . . Melee Attacks . | . . . . . . Impact . | . . . . . . Slashing . | . . . . . . Piercing . | . . . . . . Sneak Attacks . | . . . . . . Combat Hostiles . | . . . . . . Follow-up Attacks . | . . . . . . Damage Inflicted 1088 | . 839 . . . 249 Guns 761 | . 696 . . . 65 Cannons . | . . . . . . Explosions 327 | . 143 . . . 184 Melee . | . . . . . . Ramming . | . . . . . . Kinetic 221 | . 202 . . . 19 Thermal . | . . . . . . Explosive 327 | . 143 . . . 184 Electromagnetic 540 | . 494 . . . 46 Impact . | . . . . . . Slashing . | . . . . . . Piercing . | . . . . . . Highest Corruption . | . . . . . . Average Corruption . | . . . . . . Corruption Purged . | . . . . . . Overload Shots . | . . . . . . Overflow Damage 3 | . . . . . 3 Projectiles . | . . . . . . Explosions 3 | . . . . . 3 Melee . | . . . . . . Knockbacks . | . . . . . . Impact . | . . . . . . Kinetic . | . . . . . . Secondary . | . . . . . . Self-Inflicted Damage 142 | . 32 . . . 110 Shots 4 | . 1 . . . 3 Rammed . | . . . . . . Targets Rammed . | . . . . . . Kicked . | . . . . . . Crushed . | . . . . . . Highest Temperature 168 | . 168 . . . 34 Average Temperature 45 | . 48 . . . 10 Received Heat Transfer 345 | . 273 . . . 72 Siege Activations . | . . . . . . Robots Corrupted . | . . . . . . Combat Hostiles . | . . . . . . Parts Fried 6 | . 4 . . . 2 Impact Corruptions . | . . . . . . Robots Melted . | . . . . . . Combat Hostiles . | . . . . . . Parts Melted . | . . . . . . Heat Transferred . | . . . . . . Parts Sabotaged . | . . . . . . Parts Stolen . | . . . . . . Parts Stripped . | . . . . . . Power Chain Reactions . | . . . . . . Missiles Intercepted . | . . . . . . Alert | -11 -10 -10 -10 -9 -8 ------- Run | Scr Mat Min Exi Min Mat Peak Influence 182 | . 182 12 . . 37 Initial 12 | . . 12 . . . Average 68 | . 102 12 . . 12 Maximum Alert Level . | . . . . . . Low Security (%) 100 | 100 100 100 . 100 100 Level 1 . | . . . . . . Level 2 . | . . . . . . Level 3 . | . . . . . . Level 4 . | . . . . . . Level 5 . | . . . . . . High Security . | . . . . . . Max Security . | . . . . . . Squads Dispatched 3 | . 2 . . . 1 Investigation 1 | . 1 . . . . Extermination . | . . . . . . Reinforcement 2 | . 1 . . . 1 Assault . | . . . . . . Garrison . | . . . . . . Intercept . | . . . . . . Construction Impeded . | . . . . . . Haulers Reinforced . | . . . . . . Stealth | -11 -10 -10 -10 -9 -8 --------- Run | Scr Mat Min Exi Min Mat Distress Signals . | . . . . . . Communications Jammed . | . . . . . . Distress Signals . | . . . . . . Times Spotted 27 | . 20 . . . 7 Peak Tracking Total 5 | . 3 . . . 5 Tactical Retreats . | . . . . . . Traps | -11 -10 -10 -10 -9 -8 ------- Run | Scr Mat Min Exi Min Mat Traps Triggered 1 | . 1 . . . . Indirectly . | . . . . . . Trap Hack Attempts . | . . . . . . Triggered . | . . . . . . Disarmed . | . . . . . . Reprogrammed . | . . . . . . Reused . | . . . . . . Traps Extracted . | . . . . . . Installed . | . . . . . . Triggered . | . . . . . . Machines | -11 -10 -10 -10 -9 -8 ---------- Run | Scr Mat Min Exi Min Mat Machines Disabled . | . . . . . . Max in Single Turn . | . . . . . . Machines Sabotaged . | . . . . . . Garrisons Compromised . | . . . . . . Overloaded Fab Kills . | . . . . . . Fab Network Shutdowns . | . . . . . . Hacking | -11 -10 -10 -10 -9 -8 --------- Run | Scr Mat Min Exi Min Mat Machines Accessed 5 | . 2 . 3 . . Terminals 2 | . 2 . . . . Fabricators . | . . . . . . Repair Stations . | . . . . . . Recycling Units . | . . . . . . Scanalyzers . | . . . . . . Garrison Access . | . . . . . . Total Hacks 29 | . 3 . 26 . . Successful 28 | . 2 . 26 . . Failed 1 | . 1 . . . . Catastrophic . | . . . . . . Database Lockouts . | . . . . . . Manual 3 | . 2 . 1 . . Terminals 3 | . 3 . . . . Fabricators . | . . . . . . Repair Stations . | . . . . . . Recycling Units . | . . . . . . Scanalyzers . | . . . . . . Garrison Access . | . . . . . . Terminal Hacks 27 | . 1 . 26 . . Record 26 | . . . 26 . . Registered Components 1 | . 1 . . . . Fabricator Hacks . | . . . . . . Repair Station Hacks . | . . . . . . Recycling Unit Hacks . | . . . . . . Scanalyzer . | . . . . . . Garrison Access Hacks . | . . . . . . Unauthorized Hacks 1 | . 1 . . . . Terminals 1 | . 1 . . . . Botnet 1 | . 1 . . . . Fabricators . | . . . . . . Repair Stations . | . . . . . . Recycling Units . | . . . . . . Scanalyzers . | . . . . . . Garrison Access . | . . . . . . Data Cores Recovered 2 | . 2 . . . . Used 2 | . 2 . . . . Hacking Detections 1 | . 1 . . . . Full Trace Events . | . . . . . . Feedback Events . | . . . . . . Feedback Blocked . | . . . . . . Robot Schematics Acquired . | . . . . . . Robots Built . | . . . . . . Matter . | . . . . . . Time . | . . . . . . Total Robot Build Rating . | . . . . . . Part Schematics Acquired . | . . . . . . Parts Built . | . . . . . . Matter . | . . . . . . Time . | . . . . . . Total Part Build Rating . | . . . . . . Parts Repaired . | . . . . . . Time . | . . . . . . Parts Recycled . | . . . . . . Recycled Matter . | . . . . . . Retrieved Matter . | . . . . . . Retrieved Components . | . . . . . . Parts Scanalyzed . | . . . . . . Part Schematics Acquired . | . . . . . . Parts Damaged . | . . . . . . Bothacking | -11 -10 -10 -10 -9 -8 ------------ Run | Scr Mat Min Exi Min Mat Used RIF Installer . | . . . . . . Robots Hacked . | . . . . . . Non-combat . | . . . . . . Combat . | . . . . . . Robot Hacks Applied . | . . . . . . Relay Couplers Released . | . . . . . . Robots Rewired . | . . . . . . Allies Hacked . | . . . . . . Hacks Repelled . | . . . . . . Allies | -11 -10 -10 -10 -9 -8 -------- Run | Scr Mat Min Exi Min Mat Total Allies . | . . . . . . Largest Group . | . . . . . . Highest-Rated Group . | . . . . . . Highest-Rated Ally . | . . . . . . Total Orders . | . . . . . . Ally Attacks . | . . . . . . Total Damage . | . . . . . . Kills . | . . . . . . Allies Corrupted . | . . . . . . Allies Melted . | . . . . . . Intel | -11 -10 -10 -10 -9 -8 ------- Run | Scr Mat Min Exi Min Mat Robot Analysis Total . | . . . . . . Derelict Logs Recovered . | . . . . . . Drone Launches . | . . . . . . Drone Recoveries . | . . . . . . Exploration | -11 -10 -10 -10 -9 -8 ------------- Run | Scr Mat Min Exi Min Mat Turns Passed 1717 | 136 800 41 473 63 204 Spaces Moved 946 | 77 373 27 308 43 118 Core 1 | 1 . . . . . Treads 358 | 76 282 . . . . Legs 567 | . 91 27 308 43 98 Wheels . | . . . . . . Hover . | . . . . . . Flight 20 | . . . . . 20 Fastest Speed 50 | 50 160 150 150 150 120 Average Speed 159 | 158 172 150 150 150 146 Slowest Speed 210 | 160 210 150 150 150 180 Overloaded Moves . | . . . . . . Propulsion Burnouts . | . . . . . . Robots Hopped . | . . . . . . Cave-ins Triggered . | . . . . . . Exploration Rate (%) 26 | 5 56 8 64 15 12 Regions Visited 5 Branch Regions 3 Pre-discovered Areas . | . . . . . . Known Exits Taken . | . . . . . . Unknown Exits Taken 5 | 1 1 1 1 1 . Scrap Searched . | . . . . . . Spaces Dug . | . . . . . . Terrain Destroyed 63 | . 19 . . . 44 Melee . | . . . . . . Projectile . | . . . . . . AOE 63 | . 19 . . . 44 Terrain Rammed . | . . . . . . Walls Destroyed . | . . . . . . Machines Disabled . | . . . . . . Actions | -11 -10 -10 -10 -9 -8 --------- Run | Scr Mat Min Exi Min Mat Total 1069 | 88 452 28 321 42 138 Wait 10 | . 10 . . . . Move 941 | 76 372 26 307 42 118 Hop . | . . . . . . Pick Up 21 | 6 6 . 7 . 2 Fast Attach 9 | 6 3 . . . . Attach 8 | . 1 . 3 . 4 Detach 1 | . . . . . 1 Swap 6 | . 5 1 . . . Drop 13 | . 4 1 4 . 4 Fire 60 | . 51 . . . 9 Melee . | . . . . . . Ram . | . . . . . . Kick . | . . . . . . Crush . | . . . . . . Escape Stasis . | . . . . . . Rewire . | . . . . . . Trap . | . . . . . . Miscellaneous . | . . . . . . Route ------- -11/Scrapyard -10/Materials (discovered 3 exits: [*Mat x2] / [*Min]) -10/Mines -10/Exiles -9/Mines -8/Materials History --------- Turn | Location | Event 18 | -11/Scrapyard | Discovered new exit (range 16) 137 | -11/Scrapyard | Entered Materials 310 | -10/Materials | Build established: Mutant 449 | -10/Materials | Discovered new exit (range 12) 593 | -10/Materials | Discovered new exit (range 13) 688 | -10/Materials | Discovered new exit (range 12) 750 | -10/Materials | Lost 4 parts (1p1n2w) 937 | -10/Materials | Entered Mines 971 | -10/Mines | Deemed a non-threat by the Exiles lab entrance 971 | -10/Mines | Discovered new exit (range 5) 978 | -10/Mines | Entered Exiles 1025 | -10/Exiles | Met 8R-AWN 1050 | -10/Exiles | Met EX-HEX 1095 | -10/Exiles | Met EX-BIN 1118 | -10/Exiles | Aligned with FarCom system 1119 | -10/Exiles | Given EX-Vault access code 1206 | -10/Exiles | Opened EX-Vault 1215 | -10/Exiles | Found Prototype Processor 1224 | -10/Exiles | Found Prototype Device 1226 | -10/Exiles | Identified Skeleton Box 1232 | -10/Exiles | Identified Modified TNC 1268 | -10/Exiles | Warned to stay clear of 0b10 Research branches 1314 | -10/Exiles | Met EX-DEC 1436 | -10/Exiles | Discovered new exit (range 10) 1451 | -10/Exiles | Left Exiles lab with Modified TNC 1451 | -10/Exiles | Entered Mines 1486 | -9/Mines | Discovered new exit (range 12) 1514 | -9/Mines | Entered Materials 1514 | -8/Materials | Evolved 4 slots: Propulsion x2, Utility x2 1718 | -8/Materials | Self-destructed Last Messages --------------- 01667_ Penetrated by Slug. 01670_ Ion Engine destroyed. 01670_ H-55 Commando destroyed. 01672_ The unstable cave ceiling collapses. 01673_ Missile Launcher destroyed. 01674_ The unstable cave ceiling collapses. 01677_ Dropped Rigged Lgt. Fission Core. 01686_ Dropped Rigged Fission Core. 01689_ R-06 Scavenger collects Rigged Lgt. Fission Core. 01690_ Aluminum Leg destroyed. 01692_ Dropped Lrg. Storage Unit. 01692_ K-01 Serf collects debris. 01692_ Dropped Aluminum Leg. 01693_ Acquired Lrg. Storage Unit. 01696_ K-01 Serf collects debris. 01697_ R-06 Scavenger collects Rigged Fission Core. 01699_ R-06 Scavenger collects Aluminum Leg. 01700_ K-01 Serf collects debris. 01703_ R-06 Scavenger collects Aluminum Leg. 01717_ Flight Unit destroyed. Map ----- +----------------------------------------------------+ | ? ### ########### | | ? | | # | | # | | ?? ###### ## | | ???? # # #######????? | | ??????? % # # # #????? | | ?????????# ## # #????? | | ?????????# ## + """ #????? | | ?????????# # ## # """ #????? | | ?????????## # #### # """ #????? | | ??????????### ##### # #????? | | ????????????#Y# # """ #????? | | ????????????# # # """ #????? | | ????????????# # # """ #????? | | ????????????# ##### ## #????? | | ????????????#=#???# #####??????#? | | ????????????# #???# ######## ## | | ????????????# #???# | | ????????????# #???# | | ????????#####;##### a | | ????????# # ###########+# | | ????????# | # #???????????? | | ????????# !! # #???????????? | | ????????# !! # #???????????? | | ????????#@ !! # #???????????? | | ????????# # #???????????? | | ????????# ! # #???????????? | | ????????# s # #???????????? | | ????????#s#####+### #???????????? | | ????????# s #???????????? | | ????????# s / "?????????? | | ????????##+### ### ##Y??????????? | | ???????? # #?#+#????????????? | | ??????# # #????????????????? | | ??????# # #????????????????? | | ??????# "T" # #????????????????? | | ??????# """ + +????????????????? | | ??????# # #????????????????? | | ??????####+### #????????????????? | | ????????????? #????????????????? | | ???????h????? #????????????????? | | ?????????????# #????????????????? | | ?????????????? ?????????????????? | | ?????????????? ?????????????????? | | ?????????????? ?????????????????? | | ?????????????????????????????????? | | ?????????????????????????????????? | | ?????????????????????????????????? | | ?????????????????????????????????? | +----------------------------------------------------+ Best States ------------- Heat Dissipation 31 Energy Generation 10 Energy Capacity 250 Matter Stores 300 Matter Capacity 300 Sight Range 16 Terrain Scan Density 10 Evasion (%) 40 Recoil Reduction 2 Item Schematics ----------------- None Robot Schematics ------------------ None Fabricated ------------ Nothing Alien Tech Used ----------------- None Achievements -------------- None Challenges ------------ None Game ------ Seed CorruptionPhaseWarhead Manual? 0 Play Time 00:16:25 Cumulative 106.0 hours Start 2022.01.08 @ 18:58:27 End 2022.01.08 @ 19:17:42 Sessions 1 Manual Loads 0 Difficulty Rogue Special Mode None Game No. 177 Rogue 177 Adventurer 0 Explorer 0 Win Type - Total 0 Types 0/0/0/0/0/0/0/0/0 Lore% 29 Gallery% 49 Achievement% 39 Wizard Run 0 Options --------- ASCII 0 Keyboard 0 Movement Mouse Keybinds 0 Fullscreen 1 Font 18/SmallcapsGlow Map View 76x50 Tactical HUD 1 Map Filters NONE Filters NONE Steam 1 RUN: 0d979305-1b54-4fb9-93ca-20db200caced